fUST/lending_fUST_20241123
["ID","MTS","AMOUNT","RATE_DAILY","PERIOD"]
[343129988,1732375853454,-2599.42,0.0002383,2]
[343129989,1732375853463,-500.0,0.0002383,2]
[343129990,1732375853473,-2619.65,0.0002383,2]
[343129991,1732375853482,-500.0,0.0002383,2]
[343129992,1732375853491,-500.0,0.0002383,2]
[343129993,1732375853500,-500.0,0.00023831,2]
[343129994,1732375853510,-1046.17,0.00023831,10]
[343129995,1732375853519,-500.0,0.00023831,2]
[343129996,1732375853528,-500.0,0.00023831,2]
[343129997,1732375853537,-1022.43,0.00023831,2]
[343129998,1732375853547,-527.51502095,0.00023831,2]
[343129999,1732375853557,-500.0,0.00023831,2]
[343130000,1732375853566,-500.0,0.00023831,2]
[343130001,1732375853575,-500.0,0.00023831,2]
[343130002,1732375853585,-500.0,0.00023831,2]
[343130003,1732375853594,-500.0,0.00023831,2]
[343130004,1732375853604,-684.46,0.00023831,2]
[343130005,1732375853613,-620.66,0.00023831,2]
[343130006,1732375853623,-501.84,0.00023831,2]
[343130007,1732375853633,-500.0,0.00023831,2]
[343130008,1732375853642,-751.78,0.00023831,2]
[343130009,1732375853652,-844.08,0.00023831,2]
[343130010,1732375853662,-500.0,0.00023831,2]
[343130011,1732375853671,-1515.31,0.00023832,2]
[343130012,1732375853681,-1672.09,0.00023832,2]
[343130013,1732375853693,-1456.09,0.00023832,2]
[343130014,1732375853703,-833.39,0.00023832,2]
[343130015,1732375853712,-571.91,0.00023832,2]
[343130016,1732375853721,-503.77,0.00023832,2]
[343130017,1732375853734,-1199.57,0.00023832,2]
[343130018,1732375853744,-1722.52,0.00023832,2]
[343130019,1732375853753,-500.0,0.00023832,2]
[343130020,1732375853764,-758.38,0.00023832,2]
[343130021,1732375853839,-832.79,0.00023832,2]
[343130022,1732375853848,-886.26,0.00023832,2]
[343130023,1732375853858,-500.0,0.00023832,2]
[343130024,1732375853867,-500.0,0.00023832,2]
[343130025,1732375853877,-505.49,0.00023832,2]
[343130026,1732375853886,-1514.66,0.00023832,2]
[343130027,1732375853897,-3232.96,0.00023832,2]
[343130028,1732375853906,-500.0,0.00023832,2]
[343130029,1732375853915,-500.0,0.00023832,2]
[343130030,1732375853926,-1015.33,0.00023832,2]
[343130031,1732375853935,-1821.31,0.00023832,2]
[343130032,1732375853944,-521.6,0.00023832,2]
[343130033,1732375853954,-659.92,0.00023834,2]
[343130034,1732375853963,-560.03,0.00023834,2]
[343130035,1732375853972,-500.0,0.00023834,2]
[343130036,1732375853981,-442.39814819,0.00023834,2]
[343130037,1732375853990,-500.0,0.00023834,2]
[343130038,1732375854000,-1253.7,0.00023834,2]
[343130039,1732375854009,-726.57,0.00023834,2]
[343130040,1732375854018,-600.0,0.00023885,2]
[343130041,1732375854028,-4657.37,0.00024102,2]
[343130042,1732375854037,-1153.0,0.00024102,2]
[343130043,1732375854052,-3445.7,0.00024102,2]
[343130044,1732375854065,-559.71,0.00024102,2]
[343130045,1732375854075,-752.56,0.00024102,2]
[343130046,1732375854085,-19902.62,0.00024103,2]
[343130047,1732375854095,-500.0,0.00024103,2]
[343130048,1732375854104,-654.72,0.00024103,2]
[343130049,1732375854114,-754.52,0.00024103,2]
[343130050,1732375854123,-500.0,0.00024103,2]
[343130051,1732375854132,-316.08931505,0.00024103,2]
[343130052,1732375854142,-547.22,0.00024103,2]
[343130053,1732375854152,-1012.56,0.00024103,2]
[343130054,1732375854161,-500.0,0.00024103,2]
[343130055,1732375854171,-562.77,0.00024103,2]
[343130056,1732375854180,-915.85,0.00024104,2]
[343130057,1732375854190,-613.64,0.00024104,2]
[343130058,1732375854200,-638.09,0.00024104,2]
[343130059,1732375854210,-535.71,0.00024104,2]
[343130060,1732375854219,-1008.53,0.00024104,2]
[343130061,1732375854229,-500.0,0.00024104,2]
[343130062,1732375854238,-625.26,0.00024104,2]
[343130063,1732375854247,-651.01,0.00024104,2]
[343130064,1732375854257,-500.0,0.00024104,2]
[343130065,1732375854268,-500.0,0.00024104,2]
[343130066,1732375854277,-850.35,0.00024104,2]
[343130067,1732375854287,-594.66,0.00024104,2]
[343130068,1732375854296,-500.0,0.00024104,2]
[343130069,1732375854305,-527.23,0.00024104,2]
[343130070,1732375854315,-605.47,0.00024104,2]
[343130071,1732375854324,-500.0,0.00024104,2]
[343130072,1732375854333,-199.53320965,0.00024104,2]
[343130073,1732375854344,-500.0,0.00024104,2]
[343130074,1732375854354,-2794.17,0.00024104,2]
[343130075,1732375854363,-1647.64,0.00024104,2]
[343130076,1732375854372,-500.0,0.00024104,2]
[343130077,1732375854382,-1003.9,0.00024104,2]
[343130078,1732375854392,-1390.8,0.00024104,2]
[343130079,1732375854401,-623.49,0.00024104,2]
[343130080,1732375854410,-500.0,0.00024104,2]
[343130081,1732375854420,-579.06,0.00024104,2]
[343130082,1732375854429,-572.37,0.00024104,2]
[343130083,1732375854440,-500.0,0.00024104,2]
[343130084,1732375854450,-557.86,0.00024104,2]
[343130085,1732375854459,-2599.42,0.00024104,2]
[343130086,1732375854469,-500.0,0.00024104,2]
[343130087,1732375854479,-2619.65,0.00024104,2]
[343130088,1732375854489,-500.0,0.00024104,2]
[343130089,1732375854499,-500.0,0.00024104,2]
[343130090,1732375854508,-500.0,0.00024105,2]
[343130091,1732375854517,-1046.17,0.00024105,10]
[343130092,1732375854527,-500.0,0.00024105,2]
[343130093,1732375854536,-500.0,0.00024105,2]
[343130094,1732375854545,-151.0,0.00024105,7]
[343130095,1732375854554,-1022.43,0.00024105,2]
[343130096,1732375854563,-500.0,0.00024105,2]
[343130097,1732375854573,-500.0,0.00024105,2]
[343130098,1732375854582,-500.0,0.00024105,2]
[343130099,1732375854592,-500.0,0.00024105,2]
[343130100,1732375854601,-500.0,0.00024105,2]
[343130101,1732375854610,-684.46,0.00024105,2]
[343130102,1732375854619,-620.66,0.00024105,2]
[343130103,1732375854629,-501.84,0.00024105,2]
[343130104,1732375854638,-500.0,0.00024105,2]
[343130105,1732375854648,-751.78,0.00024105,2]
[343130106,1732375854658,-844.08,0.00024105,2]
[343130107,1732375854667,-521.96730446,0.00024105,2]
[343130108,1732375854681,-1515.31,0.00024106,2]
[343130109,1732375854690,-1672.09,0.00024106,2]
[343130110,1732375854699,-1456.09,0.00024106,2]
[343130111,1732375854708,-833.39,0.00024106,2]
[343130112,1732375854719,-571.91,0.00024106,2]
[343130113,1732375854728,-503.77,0.00024106,2]
[343130114,1732375854738,-1199.57,0.00024106,2]
[343130115,1732375854747,-1722.52,0.00024106,2]
[343130116,1732375854759,-500.0,0.00024106,2]
[343130117,1732375854769,-758.38,0.00024106,2]
[343130118,1732375854779,-832.79,0.00024106,2]
[343130119,1732375854788,-886.26,0.00024106,2]
[343130120,1732375854798,-500.0,0.00024106,2]
[343130121,1732375854808,-500.0,0.00024106,2]
[343130122,1732375854818,-505.49,0.00024106,2]
[343130123,1732375854827,-1514.66,0.00024106,2]
[343130124,1732375854837,-3232.96,0.00024106,2]
[343130125,1732375854848,-500.0,0.00024106,2]
[343130126,1732375854857,-500.0,0.00024106,2]
[343130127,1732375854866,-1015.33,0.00024106,2]
[343130128,1732375854876,-1821.31,0.00024106,2]
[343130129,1732375854886,-521.6,0.00024106,2]
[343130130,1732375854895,-659.92,0.00024108,2]
[343130131,1732375854905,-560.03,0.00024108,2]
[343130132,1732375854914,-500.0,0.00024108,2]
[343130133,1732375854924,-500.0,0.00024108,2]
[343130134,1732375854933,-1253.7,0.00024108,2]
[343130135,1732375854942,-726.57,0.00024108,2]
[343130136,1732375854952,-438.0,0.00024164,2]
[343130137,1732375854962,-524.49167408,0.0002418,2]
[343130138,1732375854972,-1008.56771987,0.0002435,2]
[343130139,1732375854981,-4657.37,0.00024376,2]
[343130140,1732375855054,-1153.0,0.00024376,2]
[343130141,1732375855064,-3445.7,0.00024376,2]
[343130142,1732375855074,-559.71,0.00024376,2]
[343130143,1732375855084,-752.56,0.00024376,2]
[343130144,1732375855093,-19902.62,0.00024377,2]
[343130145,1732375855103,-500.0,0.00024377,2]
[343130146,1732375855113,-654.72,0.00024377,2]
[343130147,1732375855123,-754.52,0.00024377,2]
[343130148,1732375855132,-500.0,0.00024377,2]
[343130149,1732375855142,-547.22,0.00024377,2]
[343130150,1732375855152,-1012.56,0.00024377,2]
[343130151,1732375855162,-560.88869091,0.00024377,2]
[343130152,1732375855172,-562.77,0.00024377,2]
[343130153,1732375855182,-915.85,0.00024378,2]
[343130154,1732375855192,-613.64,0.00024378,2]
[343130155,1732375855202,-638.09,0.00024378,2]
[343130156,1732375855212,-535.71,0.00024378,2]
[343130157,1732375855222,-1008.53,0.00024378,2]
[343130158,1732375855232,-500.0,0.00024378,2]
[343130159,1732375855242,-625.26,0.00024378,2]
[343130160,1732375855251,-651.01,0.00024378,2]
[343130161,1732375855260,-500.0,0.00024378,2]
[343130162,1732375855270,-500.0,0.00024378,2]
[343130163,1732375855280,-850.35,0.00024378,2]
[343130164,1732375855290,-594.66,0.00024378,2]
[343130165,1732375855300,-500.0,0.00024378,2]
[343130166,1732375855310,-527.23,0.00024378,2]
[343130167,1732375855319,-605.47,0.00024378,2]
[343130168,1732375855330,-500.0,0.00024378,2]
[343130169,1732375855341,-500.0,0.00024378,2]
[343130170,1732375855351,-2794.17,0.00024378,2]
[343130171,1732375855361,-1647.64,0.00024378,2]
[343130172,1732375855371,-500.0,0.00024378,2]
[343130173,1732375855380,-1003.9,0.00024378,2]
[343130174,1732375855390,-1390.8,0.00024378,2]
[343130175,1732375855399,-623.49,0.00024378,2]
[343130176,1732375855409,-500.0,0.00024378,2]
[343130177,1732375855419,-579.06,0.00024378,2]
[343130178,1732375855428,-572.37,0.00024378,2]
[343130179,1732375855438,-500.0,0.00024378,2]
[343130180,1732375855447,-557.86,0.00024378,2]
[343130181,1732375855457,-2599.42,0.00024378,2]
[343130182,1732375855466,-500.0,0.00024378,2]
[343130183,1732375855476,-2619.65,0.00024378,2]
[343130184,1732375855487,-475.27714301,0.00024378,2]
[343130185,1732375855499,-500.0,0.00024378,2]
[343130186,1732375855508,-500.0,0.00024379,2]
[343130187,1732375855518,-1046.17,0.00024379,10]
[343130188,1732375855527,-500.0,0.00024379,2]
[343130189,1732375855537,-500.0,0.00024379,2]
[343130190,1732375855546,-1022.43,0.00024379,2]
[343130191,1732375855555,-500.0,0.00024379,2]
[343130192,1732375855564,-500.0,0.00024379,2]
[343130193,1732375855574,-500.0,0.00024379,2]
[343130194,1732375855583,-500.0,0.00024379,2]
[343130195,1732375855593,-565.44590743,0.00024379,2]
[343130196,1732375855602,-684.46,0.00024379,2]
[343130197,1732375855612,-620.66,0.00024379,2]
[343130198,1732375855621,-501.84,0.00024379,2]
[343130199,1732375855631,-500.0,0.00024379,2]
[343130200,1732375855640,-751.78,0.00024379,2]
[343130201,1732375855651,-844.08,0.00024379,2]
[343130202,1732375855660,-1515.31,0.0002438,2]
[343130203,1732375855671,-1672.09,0.0002438,2]
[343130204,1732375855681,-1456.09,0.0002438,2]
[343130205,1732375855695,-833.39,0.0002438,2]
[343130206,1732375855705,-571.91,0.0002438,2]
[343130207,1732375855714,-503.77,0.0002438,2]
[343130208,1732375855723,-1199.57,0.0002438,2]
[343130209,1732375855734,-1722.52,0.0002438,2]
[343130210,1732375855744,-248.93754149,0.0002438,2]
[343130211,1732375855753,-758.38,0.0002438,2]
[343130212,1732375855764,-832.79,0.0002438,2]
[343130213,1732375855774,-886.26,0.0002438,2]
[343130214,1732375855783,-500.0,0.0002438,2]
[343130215,1732375855793,-500.0,0.0002438,2]
[343130216,1732375855803,-505.49,0.0002438,2]
[343130217,1732375855814,-1514.66,0.0002438,2]
[343130218,1732375855823,-3232.96,0.0002438,2]
[343130219,1732375855833,-351.51696175,0.0002438,2]
[343130220,1732375855842,-500.0,0.0002438,2]
[343130221,1732375855852,-1015.33,0.0002438,2]
[343130222,1732375855862,-1821.31,0.0002438,2]
[343130223,1732375855871,-521.6,0.0002438,2]
[343130224,1732375855880,-659.92,0.00024382,2]
[343130225,1732375855890,-560.03,0.00024382,2]
[343130226,1732375855900,-500.0,0.00024382,2]
[343130227,1732375855909,-500.0,0.00024382,2]
[343130228,1732375855919,-1253.7,0.00024382,2]
[343130229,1732375855928,-726.57,0.00024382,2]
[343130230,1732375855939,-4657.37,0.0002465,2]
[343130231,1732375855948,-1153.0,0.0002465,2]
[343130232,1732375855958,-3445.7,0.0002465,2]
[343130233,1732375855968,-172.102589,0.0002465,7]
[343130234,1732375855977,-172.102589,0.0002465,7]
[343130235,1732375855986,-559.71,0.0002465,2]
[343130236,1732375855995,-752.56,0.0002465,2]
[343130237,1732375856005,-19902.62,0.00024651,2]
[343130238,1732375856015,-500.0,0.00024651,2]
[343130239,1732375856025,-654.72,0.00024651,2]
[343130240,1732375856047,-754.52,0.00024651,2]
[343130241,1732375856056,-500.0,0.00024651,2]
[343130242,1732375856066,-547.22,0.00024651,2]
[343130243,1732375856076,-1012.56,0.00024651,2]
[343130244,1732375856085,-562.77,0.00024651,2]
[343130245,1732375856096,-915.85,0.00024652,2]
[343130246,1732375856105,-613.64,0.00024652,2]
[343130247,1732375856114,-638.09,0.00024652,2]
[343130248,1732375856124,-535.71,0.00024652,2]
[343130249,1732375856196,-1008.53,0.00024652,2]
[343130250,1732375856206,-500.0,0.00024652,2]
[343130251,1732375856216,-625.26,0.00024652,2]
[343130252,1732375856225,-651.01,0.00024652,2]
[343130253,1732375856235,-500.0,0.00024652,2]
[343130254,1732375856245,-500.0,0.00024652,2]
[343130255,1732375856260,-850.35,0.00024652,2]
[343130256,1732375856270,-594.66,0.00024652,2]
[343130257,1732375856279,-500.0,0.00024652,2]
[343130258,1732375856288,-527.23,0.00024652,2]
[343130259,1732375856297,-605.47,0.00024652,2]
[343130260,1732375856307,-500.0,0.00024652,2]
[343130261,1732375856317,-500.0,0.00024652,2]
[343130262,1732375856326,-2794.17,0.00024652,2]
[343130263,1732375856336,-1647.64,0.00024652,2]
[343130264,1732375856346,-577.03372392,0.00024652,2]
[343130265,1732375856356,-1003.9,0.00024652,2]
[343130266,1732375856366,-1390.8,0.00024652,2]
[343130267,1732375856376,-623.49,0.00024652,2]
[343130268,1732375856386,-500.0,0.00024652,2]
[343130269,1732375856395,-579.06,0.00024652,2]
[343130270,1732375856404,-572.37,0.00024652,2]
[343130271,1732375856415,-585.39893018,0.00024652,2]
[343130272,1732375856424,-557.86,0.00024652,2]
[343130273,1732375856435,-2599.42,0.00024652,2]
[343130274,1732375856444,-500.0,0.00024652,2]
[343130275,1732375856454,-2619.65,0.00024652,2]
[343130276,1732375856463,-500.0,0.00024652,2]
[343130277,1732375856473,-500.0,0.00024653,2]
[343130278,1732375856483,-1046.17,0.00024653,10]
[343130279,1732375856492,-287.25511447,0.00024653,2]
[343130280,1732375856502,-510.58653992,0.00024653,2]
[343130281,1732375856511,-1022.43,0.00024653,2]
[343130282,1732375856521,-500.0,0.00024653,2]
[343130283,1732375856531,-500.0,0.00024653,2]
[343130284,1732375856559,-617.86643581,0.00024653,2]
[343130285,1732375856569,-500.0,0.00024653,2]
[343130286,1732375856579,-684.46,0.00024653,2]
[343130287,1732375856588,-620.66,0.00024653,2]
[343130288,1732375856598,-501.84,0.00024653,2]
[343130289,1732375856607,-500.0,0.00024653,2]
[343130290,1732375856617,-751.78,0.00024653,2]
[343130291,1732375856627,-844.08,0.00024653,2]
[343130292,1732375856636,-1515.31,0.00024654,2]
[343130293,1732375856646,-1672.09,0.00024654,2]
[343130294,1732375856655,-1456.09,0.00024654,2]
[343130295,1732375856665,-833.39,0.00024654,2]
[343130296,1732375856674,-571.91,0.00024654,2]
[343130297,1732375856685,-503.77,0.00024654,2]
[343130298,1732375856695,-1199.57,0.00024654,2]
[343130299,1732375856713,-1722.52,0.00024654,2]
[343130300,1732375856731,-758.38,0.00024654,2]
[343130301,1732375856748,-832.79,0.00024654,2]
[343130302,1732375856767,-886.26,0.00024654,2]
[343130303,1732375856788,-500.0,0.00024654,2]
[343130304,1732375856804,-500.0,0.00024654,2]
[343130305,1732375856822,-505.49,0.00024654,2]
[343130306,1732375856839,-1514.66,0.00024654,2]
[343130307,1732375856854,-3232.96,0.00024654,2]
[343130308,1732375856873,-536.06986037,0.00024654,2]
[343130309,1732375856892,-1015.33,0.00024654,2]
[343130310,1732375856909,-1821.31,0.00024654,2]
[343130311,1732375856922,-521.6,0.00024654,2]
[343130312,1732375856942,-659.92,0.00024656,2]
[343130313,1732375856957,-560.03,0.00024656,2]
[343130314,1732375856972,-500.0,0.00024656,2]
[343130315,1732375856986,-500.0,0.00024656,2]
[343130316,1732375857001,-1253.7,0.00024656,2]
[343130317,1732375857015,-726.57,0.00024656,2]
[343130318,1732375857030,-200.0,0.00024657,2]
[343130319,1732375857049,-200.0,0.00024657,2]
[343130320,1732375857064,-200.0,0.00024657,2]
[343130321,1732375857083,-200.0,0.00024657,2]
[343130322,1732375857096,-200.0,0.00024657,2]
[343130323,1732375857111,-200.0,0.00024657,2]
[343130324,1732375857126,-200.0,0.00024657,2]
[343130325,1732375857141,-200.0,0.00024657,2]
[343130326,1732375857155,-200.0,0.00024657,2]
[343130327,1732375857170,-200.0,0.00024657,2]
[343130328,1732375857184,-200.0,0.00024657,2]
[343130329,1732375857199,-200.0,0.00024657,2]
[343130330,1732375857214,-200.0,0.00024657,2]
[343130331,1732375857229,-200.0,0.00024657,2]
[343130332,1732375857244,-200.0,0.00024657,2]
[343130333,1732375857260,-200.0,0.00024657,2]
[343130334,1732375857275,-200.0,0.00024657,2]
[343130335,1732375857290,-282.0474066,0.00024657,2]
[343130336,1732375857305,-151.0,0.00024658,7]
[343130337,1732375857319,-151.0,0.00024658,7]
[343130338,1732375857334,-151.0,0.00024658,7]
[343130339,1732375857350,-200.0,0.00024658,15]
[343130340,1732375857364,-28243.28,0.000247,2]
[343130341,1732375857380,-4657.37,0.00024924,2]
[343130342,1732375857395,-1153.0,0.00024924,2]
[343130343,1732375857410,-3445.7,0.00024924,2]
[343130344,1732375857425,-559.71,0.00024924,2]
[343130345,1732375857440,-752.56,0.00024924,2]
[343130346,1732375857455,-19902.62,0.00024925,2]
[343130347,1732375857470,-613.72477978,0.00024925,2]
[343130348,1732375857485,-654.72,0.00024925,2]
[343130349,1732375857500,-754.52,0.00024925,2]
[343130350,1732375857609,-500.0,0.00024925,2]
[343130351,1732375857621,-547.22,0.00024925,2]
[343130352,1732375857631,-1012.56,0.00024925,2]
[343130353,1732375857641,-562.77,0.00024925,2]
[343130354,1732375857650,-915.85,0.00024926,2]
[343130355,1732375857660,-613.64,0.00024926,2]
[343130356,1732375857669,-638.09,0.00024926,2]
[343130357,1732375857682,-535.71,0.00024926,2]
[343130358,1732375857697,-1008.53,0.00024926,2]
[343130359,1732375857706,-500.0,0.00024926,2]
[343130360,1732375857716,-625.26,0.00024926,2]
[343130361,1732375857727,-651.01,0.00024926,2]
[343130362,1732375857737,-599.77844562,0.00024926,2]
[343130363,1732375857748,-216.0735749,0.00024926,2]
[343130364,1732375857757,-850.35,0.00024926,2]
[343130365,1732375857768,-594.66,0.00024926,2]
[343130366,1732375857779,-500.0,0.00024926,2]
[343130367,1732375857788,-527.23,0.00024926,2]
[343130368,1732375857810,-605.47,0.00024926,2]
[343130369,1732375857820,-553.46730302,0.00024926,2]
[343130370,1732375857831,-526.4116264,0.00024926,2]
[343130371,1732375857841,-2794.17,0.00024926,2]
[343130372,1732375857851,-1647.64,0.00024926,2]
[343130373,1732375857860,-1003.9,0.00024926,2]
[343130374,1732375857870,-1390.8,0.00024926,2]
[343130375,1732375857879,-623.49,0.00024926,2]
[343130376,1732375857889,-500.0,0.00024926,2]
[343130377,1732375857899,-579.06,0.00024926,2]
[343130378,1732375857908,-572.37,0.00024926,2]
[343130379,1732375857918,-557.86,0.00024926,2]
[343130380,1732375857927,-2599.42,0.00024926,2]
[343130381,1732375857937,-500.0,0.00024926,2]
[343130382,1732375857948,-2619.65,0.00024926,2]
[343130383,1732375857969,-500.0,0.00024926,2]
[343130384,1732375857979,-500.0,0.00024927,2]
[343130385,1732375857989,-1046.17,0.00024927,10]
[343130386,1732375857998,-151.0,0.00024927,7]
[343130387,1732375858010,-1022.43,0.00024927,2]
[343130388,1732375858020,-500.0,0.00024927,2]
[343130389,1732375858032,-500.0,0.00024927,2]
[343130390,1732375858042,-500.0,0.00024927,2]
[343130391,1732375858052,-684.46,0.00024927,2]
[343130392,1732375858062,-620.66,0.00024927,2]
[343130393,1732375858071,-501.84,0.00024927,2]
[343130394,1732375858080,-500.0,0.00024927,2]
[343130395,1732375858091,-751.78,0.00024927,2]
[343130396,1732375858101,-844.08,0.00024927,2]
[343130397,1732375858110,-1515.31,0.00024928,2]
[343130398,1732375858122,-1672.09,0.00024928,2]
[343130399,1732375858132,-1456.09,0.00024928,2]
[343130400,1732375858142,-833.39,0.00024928,2]
[343130401,1732375858152,-571.91,0.00024928,2]
[343130402,1732375858161,-503.77,0.00024928,2]
[343130403,1732375858170,-1199.57,0.00024928,2]
[343130404,1732375858180,-1722.52,0.00024928,2]
[343130405,1732375858190,-758.38,0.00024928,2]
[343130406,1732375858199,-832.79,0.00024928,2]
[343130407,1732375858209,-886.26,0.00024928,2]
[343130408,1732375858218,-500.0,0.00024928,2]
[343130409,1732375858227,-500.0,0.00024928,2]
[343130410,1732375858237,-505.49,0.00024928,2]
[343130411,1732375858247,-1514.66,0.00024928,2]
[343130412,1732375858263,-3232.96,0.00024928,2]
[343130413,1732375858273,-1015.33,0.00024928,2]
[343130414,1732375858283,-1821.31,0.00024928,2]
[343130415,1732375858295,-521.6,0.00024928,2]
[343130416,1732375858311,-659.92,0.0002493,2]
[343130417,1732375858321,-560.03,0.0002493,2]
[343130418,1732375858330,-500.0,0.0002493,2]
[343130419,1732375858340,-500.0,0.0002493,2]
[343130420,1732375858349,-1253.7,0.0002493,2]
[343130421,1732375858359,-726.57,0.0002493,2]
[343130422,1732375858368,-524.49167408,0.00024979,2]
[343130423,1732375858378,-600.0,0.00024981,7]
[343130424,1732375858388,-313.95163313,0.00024981,2]
[343130425,1732375858398,-300.0,0.00025,2]
[343130426,1732375858407,-300.0,0.00025,2]
[343130427,1732375858416,-273.599999,0.00025,2]
[343130428,1732375858427,-500.0,0.00025,17]
[343130429,1732375858436,-2588.55611007,0.00025,2]
[343130430,1732375858446,-1041.79445913,0.00025,2]
[343130431,1732375858455,-522698.37270067,0.00025,2]
[343130432,1732375858464,-165.69622902,0.00025,2]
[343130433,1732375858475,-203.6775441,0.00025,2]
[343130434,1732375858484,-57020.30109045,0.00025,2]
[343130435,1732375858494,-510.54110858,0.00025,2]
[343130436,1732375858503,-10364.0,0.00025,2]
[343130437,1732375858512,-347.2459302,0.00025,2]
[343130438,1732375858522,-829.11280836,0.00025,2]
[343130439,1732375858532,-172.102589,0.00025,7]
[343130440,1732375858544,-172.102589,0.00025,7]
[343130441,1732375858557,-142831.0691385,0.0002509,2]
[343130442,1732375858567,-4657.37,0.00025198,2]
[343130443,1732375858576,-1153.0,0.00025198,2]
[343130444,1732375858587,-3445.7,0.00025198,2]
[343130445,1732375858596,-559.71,0.00025198,2]
[343130446,1732375858605,-752.56,0.00025198,2]
[343130447,1732375858614,-19902.62,0.00025199,2]
[343130448,1732375858624,-654.72,0.00025199,2]
[343130449,1732375858634,-754.52,0.00025199,2]
[343130450,1732375858643,-535.67584379,0.00025199,2]
[343130451,1732375858653,-547.22,0.00025199,2]
[343130452,1732375858663,-1012.56,0.00025199,2]
[343130453,1732375858673,-562.77,0.00025199,2]
[343130454,1732375858683,-915.85,0.000252,2]
[343130455,1732375858695,-613.64,0.000252,2]
[343130456,1732375858705,-638.09,0.000252,2]
[343130457,1732375858714,-535.71,0.000252,2]
[343130458,1732375858724,-1008.53,0.000252,2]
[343130459,1732375858734,-500.0,0.000252,2]
[343130460,1732375858744,-625.26,0.000252,2]
[343130461,1732375858753,-651.01,0.000252,2]
[343130462,1732375858764,-850.35,0.000252,2]
[343130463,1732375858774,-594.66,0.000252,2]
[343130464,1732375858783,-500.0,0.000252,2]
[343130465,1732375858797,-527.23,0.000252,2]
[343130466,1732375858807,-605.47,0.000252,2]
[343130467,1732375858817,-2794.17,0.000252,2]
[343130468,1732375858826,-1647.64,0.000252,2]
[343130469,1732375858836,-1003.9,0.000252,2]
[343130470,1732375858846,-1390.8,0.000252,2]
[343130471,1732375858856,-623.49,0.000252,2]
[343130472,1732375858866,-248.7809462,0.000252,2]
[343130473,1732375858875,-579.06,0.000252,2]
[343130474,1732375858885,-572.37,0.000252,2]
[343130475,1732375858895,-557.86,0.000252,2]
[343130476,1732375858904,-2599.42,0.000252,2]
[343130477,1732375858913,-500.0,0.000252,2]
[343130478,1732375858923,-2619.65,0.000252,2]
[343130479,1732375858932,-500.0,0.000252,2]
[343130480,1732375858947,-511.66576706,0.00025201,2]
[343130481,1732375858956,-1046.17,0.00025201,10]
[343130482,1732375858965,-1022.43,0.00025201,2]
[343130483,1732375858975,-500.0,0.00025201,2]
[343130484,1732375858984,-500.0,0.00025201,2]
[343130485,1732375858993,-413.51904427,0.00025201,2]
[343130486,1732375859003,-684.46,0.00025201,2]
[343130487,1732375859012,-620.66,0.00025201,2]